{"text_format":"1","workbook":"xlsx","n_sheets":8,"sheets":["A copier pour nouvelle Cde","A","Cde 0 - U - 150934","Cde 1 - U - 160019","Cde 2 - S - 158793","Cde 3 - 123987","Z","Cde - Récapitulatif"],"not_rendered":{"charts":0,"images":0,"macros":1,"external_links":0,"defined_names":6,"comments":0,"pivot_tables":0},"unopened":[],"bounds":{"document_bytes":16777216,"sheet_cells":100000,"rows_first":2000,"rows_last":500,"rows_between":2000,"halvings":0,"cell_chars":16384,"cell_head_chars":4096},"cells_cut":0,"cells_raw":0,"read":"whole","date_system":"1900"}

{"sheet":"A copier pour nouvelle Cde","index":0,"n_rows":14,"n_cols":6,"rows_kept":14,"cut":false,"hidden":false,"merged":[[2,2,2,5]]}
[null,null,"N°","Date","ref dossier","ref cne"]
[null,"Commande n°",0]
[null,"Objet "]
["N° de prix","DÉSIGNATION les titres de prestations sont indicatifs","Unités","Qté","Prix Unitaires en € H.T.","Montant Total H.T."]
["I","Interventions foncières"]
[]
[null,"a","ha",1,25,{"$f":"SUM(E7*D7)","v":25}]
[null,"b","U",2,20,40]
[null,"c","ha",5,10,50]
[null,"d","U",3,70,210]
[null,"e","forfait",4,50,200]
[null,"f","U",5,16.91,84.55]
[null,"g","U",20,10,200]
[null,"h","forfait",2,75,150]

{"sheet":"A","index":1,"n_rows":0,"n_cols":0,"rows_kept":0,"cut":false,"hidden":false,"merged":[]}

{"sheet":"Cde 0 - U - 150934","index":2,"n_rows":14,"n_cols":6,"rows_kept":14,"cut":false,"hidden":false,"merged":[[2,2,2,5]]}
[null,null,"N°","Date","ref dossier","ref cne"]
[null,"Commande n°",0,null,"U - 150934"]
[null,"Objet "]
["N° de prix","DÉSIGNATION les titres de prestations sont indicatifs","Unités","Qté","Prix Unitaires en € H.T.","Montant Total H.T."]
["I","Interventions foncières"]
[]
[null,"a","ha",1,25,{"$f":"SUM(E7*D7)","v":25}]
[null,"b","U",2,20,40]
[null,"c","ha",5,10,50]
[null,"d","U",3,70,210]
[null,"e","forfait",4,50,200]
[null,"f","U",5,16.91,84.55]
[null,"g","U",20,10,200]
[null,"h","forfait",2,75,150]

{"sheet":"Cde 1 - U - 160019","index":3,"n_rows":14,"n_cols":6,"rows_kept":14,"cut":false,"hidden":false,"merged":[[2,2,2,5]]}
[null,null,"N°","Date","ref dossier","ref cne"]
[null,"Commande n°",0,null,"U - 160019"]
[null,"Objet "]
["N° de prix","DÉSIGNATION les titres de prestations sont indicatifs","Unités","Qté","Prix Unitaires en € H.T.","Montant Total H.T."]
["I","Interventions foncières"]
[]
[null,"a","ha",1,25,{"$f":"SUM(E7*D7)","v":25}]
[null,"b","U",2,20,40]
[null,"c","ha",5,10,50]
[null,"d","U",3,70,210]
[null,"e","forfait",4,50,200]
[null,"f","U",5,16.91,84.55]
[null,"g","U",20,10,200]
[null,"h","forfait",2,75,150]

{"sheet":"Cde 2 - S - 158793","index":4,"n_rows":14,"n_cols":6,"rows_kept":14,"cut":false,"hidden":false,"merged":[[2,2,2,5]]}
[null,null,"N°","Date","ref dossier","ref cne"]
[null,"Commande n°",0,null,"S - 158793"]
[null,"Objet "]
["N° de prix","DÉSIGNATION les titres de prestations sont indicatifs","Unités","Qté","Prix Unitaires en € H.T.","Montant Total H.T."]
["I","Interventions foncières"]
[]
[null,"a","ha",1,25,{"$f":"SUM(E7*D7)","v":25}]
[null,"b","U",2,20,40]
[null,"c","ha",5,10,50]
[null,"d","U",3,70,210]
[null,"e","forfait",4,50,200]
[null,"f","U",5,16.91,84.55]
[null,"g","U",20,10,200]
[null,"h","forfait",2,75,150]

{"sheet":"Cde 3 - 123987","index":5,"n_rows":14,"n_cols":6,"rows_kept":14,"cut":false,"hidden":false,"merged":[[2,2,2,5]]}
[null,null,"N°","Date","ref dossier","ref cne"]
[null,"Commande n°",0,null,"S - 123987"]
[null,"Objet "]
["N° de prix","DÉSIGNATION les titres de prestations sont indicatifs","Unités","Qté","Prix Unitaires en € H.T.","Montant Total H.T."]
["I","Interventions foncières"]
[]
[null,"a","ha",1,25,{"$f":"SUM(E7*D7)","v":25}]
[null,"b","U",2,20,40]
[null,"c","ha",5,10,50]
[null,"d","U",3,70,210]
[null,"e","forfait",4,50,200]
[null,"f","U",5,16.91,84.55]
[null,"g","U",20,10,200]
[null,"h","forfait",2,75,150]

{"sheet":"Z","index":6,"n_rows":0,"n_cols":0,"rows_kept":0,"cut":false,"hidden":false,"merged":[]}

{"sheet":"Cde - Récapitulatif","index":7,"n_rows":15,"n_cols":9,"rows_kept":15,"cut":false,"hidden":false,"merged":[[2,2,2,5]]}
[null,null,"N°","Date","ref dossier","ref cne"]
[null,"Commande n°",0,null,"Récapitulatif"]
[null,"Objet "]
["N° de prix","DÉSIGNATION les titres de prestations sont indicatifs","Unités","Qté","Prix Unitaires en € H.T.","Montant Total H.T."]
["I","Interventions foncières"]
[null,null,null,null,null,null,null,"Qté U","Qté S"]
[null,"a","ha",{"$f":"SUM(A:Z!D9)","v":20},25,{"$f":"SUM(E7*D7)","v":500},null,{"$f":"Somme_personnalisee(\"D\"&ROW(),\"U\")","v":2},{"$f":"Somme_personnalisee(\"D\"&ROW(),\"S\")","v":1}]
[null,"b","U",{"$f":"SUM(A:Z!D10)","v":12},20,{"$f":"SUM(E8*D8)","v":240},null,{"$f":"Somme_personnalisee(\"D\"&ROW(),\"U\")","v":4},{"$f":"Somme_personnalisee(\"D\"&ROW(),\"S\")","v":2}]
[null,"c","ha",{"$f":"SUM(A:Z!D11)","v":16},10,{"$f":"SUM(E9*D9)","v":160},null,10,5]
[null,"d","U",{"$f":"SUM(A:Z!D12)","v":20},70,{"$f":"SUM(E10*D10)","v":1400},null,6,3]
[null,"e",null,{"$f":"SUM(A:Z!D13)","v":80},null,null,null,8,4]
[null,"f","forfait",{"$f":"SUM(A:Z!D14)","v":8},50,{"$f":"SUM(E12*D12)","v":400},null,10,5]
[null,"g","U",{"$f":"SUM(A:Z!D15)","v":0},16.91,{"$f":"SUM(E13*D13)","v":0},null,40,20]
[null,"h","U",{"$f":"SUM(A:Z!D16)","v":0},10,{"$f":"SUM(E14*D14)","v":0},null,4,2]
[null,"i","forfait",{"$f":"SUM(A:Z!D17)","v":0},75,{"$f":"SUM(E15*D15)","v":0},null,0,0]